fUSD/lending_fUSD_20241121
["ID","MTS","AMOUNT","RATE_DAILY","PERIOD"]
[342956323,1732219851996,-1959.68,0.00049999,120]
[342956324,1732219852006,-50000.0,0.0005,40]
[342956325,1732219852015,-50000.0,0.0005,50]
[342956326,1732219852026,-600.0,0.0005,120]
[342956327,1732219852035,-13479.41,0.0005,120]
[342956328,1732219852046,-33028.4000781,0.0005,5]
[342956329,1732219852056,-22719.46,0.0005,120]
[342956330,1732219852066,-209767.99167012,0.0005,120]
[342956331,1732219852075,-5217.0,0.0005,25]
[342956332,1732219852084,-163.7556179,0.0005,120]
[342956333,1732219852094,-157.02,0.0005,120]
[342956334,1732219852104,-2800.0,0.0005,120]
[342956335,1732219852114,-2446.37630382,0.0005,30]
[342956336,1732219852123,-5000.0,0.0005,30]
[342956337,1732219852133,-100000.0,0.0005,120]
[342956338,1732219852144,-30000.0,0.0005,120]
[342956339,1732219852154,-16047.0,0.0005,45]
[342956340,1732219852164,-11367.23560346,0.0005,120]
[342956341,1732219852175,-3000.0,0.0005,120]
[342956342,1732219852184,-117032.835218,0.0005,120]
[342956343,1732219852193,-2000.0,0.0005,30]
[342956344,1732219852204,-6910.58858653,0.0005,120]
[342956345,1732219852213,-13000.0,0.0005,120]
[342956346,1732219852224,-13000.0,0.0005,120]
[342956347,1732219852234,-2001.01242848,0.0005,30]
[342956348,1732219852244,-200000.0,0.0005,60]
[342956349,1732219852254,-184.0,0.0005,90]
[342956350,1732219852264,-564.8224052,0.0005,2]
[342956351,1732219852275,-2233.0,0.0005,5]
[342956352,1732219852285,-500.0,0.0005,120]
[342956353,1732219852295,-200.0,0.0005,2]
[342956354,1732219852305,-50000.0,0.0005,120]
[342956355,1732219852315,-1800.0,0.0005,51]
[342956356,1732219852324,-1176.38515739,0.0005,120]
[342956357,1732219852334,-9377.879543,0.0005,120]
[342956358,1732219852343,-1000.0,0.0005,60]
[342956359,1732219852353,-33387.75522625,0.0005,120]
[342956360,1732219852363,-45604.82030492,0.0005,120]
[342956361,1732219852373,-4000.0,0.0005,120]
[342956362,1732219852382,-1534.44595255,0.0005,60]
[342956363,1732219852392,-630.0,0.0005,30]
[342956364,1732219852402,-300.00001,0.0005,30]
[342956365,1732219852412,-1212.01708594,0.0005,10]
[342956366,1732219852427,-25352.87831879,0.0005,120]
[342956367,1732219852436,-3252.22,0.0005,120]
[342956368,1732219852446,-21994.0,0.0005,13]
[342956369,1732219852456,-267.958262,0.0005,120]
[342956370,1732219852467,-151.0,0.0005,120]
[342956371,1732219852476,-1234.44,0.00050082,120]
[342956372,1732219852486,-608.29,0.00050099,120]
[342956373,1732219852495,-2163.33,0.00050099,120]
[342956374,1732219852506,-1959.68,0.00050099,120]
[342956375,1732219852516,-100000.0,0.000501,120]
[342956376,1732219852525,-150.0,0.00050102,120]
[342956377,1732219852534,-150.0,0.00050102,120]
[342956378,1732219852544,-150.0,0.00050102,2]
[342956379,1732219852554,-421.93189667,0.00050104,120]
[342956380,1732219852565,-1000.0,0.0005011,120]
[342956381,1732219852576,-2000.0,0.00050137,120]
[342956382,1732219852585,-157.112205,0.00050198,120]
[342956383,1732219852595,-100000.0,0.000502,120]
[342956384,1732219852605,-421.93189667,0.00050233,120]
[342956385,1732219852615,-174.0,0.0005027,30]
[342956386,1732219852625,-174.0,0.0005028,30]
[342956387,1732219852635,-174.0,0.0005029,30]
[342956388,1732219852645,-2163.33,0.00050299,120]
[342956389,1732219852655,-1959.68,0.00050299,120]
[342956390,1732219852665,-100000.0,0.000503,120]
[342956391,1732219852676,-1543.05,0.00050356,120]
[342956392,1732219852685,-100000.0,0.000504,120]
[342956393,1732219852695,-2000.0,0.00050411,120]
[342956394,1732219852705,-1012.74,0.0005044,120]
[342956395,1732219852715,-2000.0,0.00050454,120]
[342956396,1732219852725,-761.2,0.00050473,120]
[342956397,1732219852735,-157.112205,0.00050498,120]
[342956398,1732219852744,-1959.68,0.00050499,120]
[342956399,1732219852754,-100000.0,0.000505,120]
[342956400,1732219852763,-2646.17181283,0.000505,120]
[342956401,1732219852942,-157.0,0.00041096,2]
[342956402,1732219852952,-968.18,0.00043581,30]
[342956403,1732219852962,-44.72,0.000505,120]
[342956404,1732219853333,-581.9499978,0.000505,120]
[342956405,1732219853345,-2355.13618,0.000505,120]
[342956406,1732219853357,-1926.5212,0.000505,120]
[342956407,1732219853369,-879.94650026,0.000505,120]
[342956408,1732219853381,-500.0,0.000505,120]
[342956409,1732219853392,-9850.5618,0.000505,120]
[342956410,1732219853406,-1002.09583675,0.000505,120]
[342956411,1732220132814,152.32,0.00015342,2]
[342956412,1732220133035,152.32,0.00027507,2]
[342956413,1732220368196,8175.0,0.0003,2]
[342956414,1732220529810,2403.88503807,0.0003,2]
[342956415,1732220708105,202167.94537651,0.00011,2]
[342956416,1732220708931,12073.03126362,0.0001,2]
[342956417,1732220726078,2363.8935491,0.00025,30]
[342956418,1732220726663,3174.71727695,0.00028,15]
[342956419,1732220741491,322077.00596326,0.0001,2]
[342956420,1732220741518,46836.0969149,0.0001,2]
[342956421,1732220754421,1375.66912354,9.336e-05,2]
[342956422,1732220851540,849.84824963,0.00024,30]
[342956448,1732220972152,-3433.328766,0.000145,3]
[342956454,1732221013607,-800.0,0.00014493,2]
[342956455,1732221013631,-5200.0,0.000145,3]
[342956467,1732221031561,-249.47947625,0.000145,3]
[342956468,1732221031571,-151.29,0.00015342,2]
[342956470,1732221031585,-150.0,0.00015936,2]
[342956471,1732221031595,-328.50475909,0.00018,2]
[342956472,1732221031605,-1402.978389,0.000199,2]
[342956473,1732221031614,-1311.17137566,0.0002,5]
[342956474,1732221031630,-73.44544605,0.0002,5]
[342956475,1732221031639,-200.0,0.0002,5]
[342956476,1732221031650,-2762.16383952,0.0002,7]
[342956477,1732221031659,-2441.0,0.0002,2]
[342956478,1732221031670,-151.29,0.00021745,2]
[342956479,1732221031679,-2900.0,0.000225,15]
[342956480,1732221031689,-14773.35798322,0.000225,2]
[342956481,1732221031699,-900.0,0.000235,2]
[342956482,1732221031708,-3983.44228041,0.00023922,2]
[342956483,1732221031718,-776.48118413,0.0002402,2]
[342956484,1732221031728,-155.42825,0.00024774,2]
[342956485,1732221031739,-158.674,0.00024774,2]
[342956486,1732221031753,-306.29881778,0.00025,120]
[342956487,1732221031764,-2901.09181045,0.00025,2]
[342956488,1732221031773,-280.0,0.000253,10]
[342956489,1732221031783,-726.11951677,0.00026,30]
[342956490,1732221031794,-800.0,0.00026986,120]
[342956491,1732221031804,-250.0,0.00027,2]
[342956492,1732221031814,-676.14963647,0.00027,120]
[342956493,1732221031824,-680.32572897,0.00027,120]
[342956494,1732221031833,-659.52959922,0.00027,120]
[342956495,1732221031843,-353.0,0.0002783,15]
[342956496,1732221031852,-151.29,0.00028147,2]
[342956497,1732221031862,-1039.71285651,0.0003,120]
[342956498,1732221031871,-151.0,0.0003,120]
[342956499,1732221031881,-353.0,0.000301,2]
[342956500,1732221031890,-250.0,0.00031,2]
[342956501,1732221031899,-452.83051998,0.000314,30]
[342956502,1732221031909,-560.02,0.00032658,2]
[342956503,1732221031920,-403.7,0.00032811,2]
[342956504,1732221031929,-354.63,0.00032891,120]
[342956505,1732221031939,-300.0,0.00033,2]
[342956506,1732221031948,-191.76211406,0.00033,120]
[342956507,1732221031958,-155.42825,0.00034014,2]
[342956508,1732221031968,-151.29,0.00034549,2]
[342956510,1732221031977,-2500.95039572,0.0003489,10]
[342956511,1732221031987,-350.0,0.00035,2]
[342956512,1732221031997,-2126.36203606,0.00035,2]
[342956513,1732221032007,-1543.5618542,0.00035,30]
[342956514,1732221032016,-250.0,0.00036828,2]
[342956515,1732221032025,-400.0,0.00037,2]
[342956517,1732221032034,-295.52907379,0.00037,2]
[342956519,1732221032044,-413.18778792,0.00037,2]
[342956521,1732221032054,-354.63,0.00037002,120]
[342956523,1732221032063,-3101.53548364,0.0003706,30]
[342956525,1732221032072,-2704.39999322,0.0003706,30]
[342956527,1732221032081,-2316.68064184,0.0003706,30]
[342956529,1732221032090,-3161.56312899,0.0003706,30]
[342956530,1732221032099,-2963.58164752,0.0003706,2]
[342956532,1732221032108,-2500.0,0.0003706,30]
[342956534,1732221032118,-2472.83562528,0.0003706,30]
[342956535,1732221032127,-2694.36131682,0.0003706,2]
[342956536,1732221032136,-2420.15634779,0.0003706,2]
[342956537,1732221032145,-2640.4054172,0.0003706,2]
[342956538,1732221032155,-3000.0,0.0003706,30]
[342956539,1732221032164,-3201.62837764,0.0003706,2]
[342956540,1732221032176,-150.0,0.0003706,30]
[342956541,1732221032185,-2073.0,0.0003706,2]
[342956542,1732221032194,-3199.82554319,0.0003706,2]
[342956543,1732221032202,-3004.99471401,0.0003706,30]
[342956544,1732221032220,-2500.0,0.0003706,2]
[342956545,1732221032229,-2347.63380729,0.0003706,2]
[342956546,1732221032237,-2628.83069268,0.0003706,30]
[342956547,1732221032246,-2271.76755062,0.0003706,30]
[342956548,1732221032257,-2720.70885678,0.0003706,5]
[342956549,1732221032267,-3014.27217752,0.0003706,30]
[342956550,1732221032278,-600.0,0.0003706,2]
[342956551,1732221032287,-250.0,0.00037353,120]
[342956552,1732221032296,-150.0,0.00038148,120]
[342956553,1732221032306,-8869.15,0.00038355,10]
[342956554,1732221032315,-500.0,0.00038356,11]
[342956555,1732221032324,-500.0,0.00038356,11]
[342956556,1732221032333,-500.0,0.00038356,11]
[342956557,1732221032342,-222.81045358,0.00038356,11]
[342956558,1732221032354,-500.0,0.00038356,11]
[342956559,1732221032363,-500.0,0.00038356,11]
[342956560,1732221032373,-471.37723023,0.00038356,11]
[342956561,1732221032382,-151.0,0.00038575,120]
[342956562,1732221032391,-500.0,0.0003863,11]
[342956563,1732221032400,-562.14531476,0.0003863,11]
[342956564,1732221032410,-500.0,0.0003863,11]
[342956565,1732221032421,-500.0,0.00038903,11]
[342956566,1732221032430,-500.0,0.00038903,11]
[342956567,1732221032440,-512.27982398,0.00038903,11]
[342956568,1732221032449,-500.0,0.00038903,11]
[342956569,1732221032459,-500.0,0.00038903,11]
[342956570,1732221032469,-157.90919999,0.00038903,11]
[342956571,1732221032479,-500.0,0.00038903,11]
[342956572,1732221032488,-458.77792642,0.00038903,11]
[342956573,1732221032498,-500.0,0.00038903,11]
[342956574,1732221032508,-500.0,0.00038903,2]
[342956575,1732221032518,-500.0,0.00038903,11]
[342956576,1732221032528,-500.0,0.00038904,11]
[342956577,1732221032537,-500.0,0.00038904,11]
[342956578,1732221032547,-450.0,0.00039,2]
[342956579,1732221032558,-164.23913962,0.00039,120]
[342956580,1732221032567,-15339.68,0.00039,120]
[342956581,1732221032577,-358.51,0.00039177,11]
[342956582,1732221032715,-559.79,0.00039177,11]
[342956583,1732221032763,-500.0,0.00039178,11]
[342956584,1732221032773,-500.0,0.00039178,11]
[342956585,1732221032784,-150.0,0.00039255,120]
[342956586,1732221032793,-167.83,0.00039452,11]
[342956587,1732221032802,-327.14,0.00039452,11]
[342956588,1732221032812,-150.0,0.00039498,120]
[342956589,1732221032823,-152.32,0.00039671,2]
[342956590,1732221032833,-210.0,0.000399,2]
[342956591,1732221032843,-223153.74585246,0.000399,21]
[342956592,1732221032852,-150.0,0.00039923,120]
[342956593,1732221032862,-477.12749073,0.0004,30]
[342956594,1732221032871,-322.32620823,0.0004,30]
[342956595,1732221032880,-1503.53977907,0.0004,30]
[342956596,1732221032889,-500.0,0.0004,120]
[342956597,1732221032899,-1529.68070635,0.0004,30]
[342956598,1732221032909,-309.64313017,0.0004,120]
[342956599,1732221032920,-191.67128043,0.0004,30]
[342956600,1732221032929,-1180.92117028,0.0004,120]
[342956601,1732221032939,-473.87137395,0.0004,120]
[342956602,1732221032949,-653.49141498,0.0004,30]
[342956603,1732221032959,-2040.66823725,0.0004,120]
[342956604,1732221032968,-500.0,0.00040657,120]
[342956605,1732221032977,-151.29,0.00040952,2]
[342956606,1732221032987,-346.46619072,0.00040998,120]
[342956607,1732221032996,-500.0,0.00041,2]
[342956608,1732221033005,-464.10654258,0.00041,120]
[342956609,1732221033014,-200.0,0.00041021,2]
[342956610,1732221033023,-354.63,0.00041113,120]
[342956611,1732221033033,-1564.498,0.00041276,60]
[342956612,1732221033042,-500.0,0.00041315,120]
[342956613,1732221033051,-500.0,0.00041355,120]
[342956614,1732221033060,-150.0,0.00041474,120]
[342956615,1732221033070,-250.0,0.00041689,2]
[342956616,1732221033080,-880.43,0.000419,2]
[342956617,1732221033089,-2472.7,0.00041915,2]
[342956618,1732221033099,-2000.0,0.0004195,120]
[342956619,1732221033109,-23900.0,0.00041963,2]
[342956620,1732221033118,-500.0,0.00041972,120]
[342956621,1732221033127,-449.3799696,0.00042,120]
[342956622,1732221033137,-23819.73563362,0.00042,30]
[342956623,1732221033146,-1045.96,0.00042016,2]
[342956624,1732221033155,-1000.0,0.00042029,2]
[342956625,1732221033164,-1927.0,0.00042121,2]
[342956626,1732221033175,-1260.0,0.00042121,2]
[342956627,1732221033185,-815.0,0.00042121,2]
[342956628,1732221033195,-919.0,0.00042121,2]
[342956629,1732221033204,-564.0,0.00042121,2]
[342956630,1732221033214,-685.401,0.00042121,2]
[342956631,1732221033223,-1256.0,0.00042121,2]
[342956632,1732221033233,-150.0,0.00042121,2]
[342956633,1732221033243,-1713.99,0.00042178,2]
[342956634,1732221033254,-700.0,0.00042191,15]
[342956635,1732221033264,-700.0,0.00042191,15]
[342956636,1732221033273,-700.0,0.00042191,15]
[342956637,1732221033283,-700.0,0.00042191,15]
[342956638,1732221033293,-700.0,0.00042191,15]
[342956639,1732221033303,-700.0,0.00042191,15]
[342956640,1732221033313,-700.0,0.00042191,15]
[342956641,1732221033323,-700.0,0.00042191,15]
[342956642,1732221033332,-700.0,0.00042191,15]
[342956643,1732221033342,-700.0,0.00042191,15]
[342956644,1732221033351,-3921.46864397,0.00042289,120]
[342956645,1732221033361,-150.0,0.00042295,2]
[342956646,1732221033371,-200.0,0.00042334,120]
[342956647,1732221033380,-163.78,0.00042377,2]
[342956648,1732221033390,-366.877156,0.000424,60]
[342956649,1732221033399,-1000.16,0.000424,60]
[342956650,1732221033409,-614.97,0.00042405,120]
[342956651,1732221033420,-500.0,0.00042455,120]
[342956652,1732221033430,-500.0,0.00042487,2]
[342956653,1732221033440,-152.34,0.000425,33]
[342956654,1732221033450,-152.34,0.000425,33]
[342956655,1732221033460,-152.34,0.000425,33]
[342956656,1732221033471,-152.34,0.000425,33]
[342956657,1732221033480,-152.34,0.000425,33]
[342956658,1732221033490,-152.34,0.000425,33]
[342956659,1732221033499,-152.34,0.000425,33]
[342956660,1732221033509,-1663.2890086,0.000425,120]
[342956661,1732221033518,-500.0,0.00042555,120]
[342956662,1732221033528,-500.0,0.0004257,2]
[342956663,1732221033538,-526.26,0.00042611,120]
[342956664,1732221033547,-500.0,0.00042619,31]
[342956665,1732221033556,-500.0,0.00042619,31]
[342956666,1732221033566,-384.56795276,0.00042619,31]
[342956667,1732221033576,-500.0,0.00042619,31]
[342956668,1732221033585,-378.73263701,0.00042619,31]
[342956669,1732221033595,-500.0,0.0004263,120]
[342956670,1732221033604,-259.08,0.00042701,120]
[342956671,1732221033614,-2000.0,0.00042851,120]
[342956672,1732221033623,-550.0,0.00043,2]
[342956673,1732221033634,-155.42825,0.00043254,2]
[342956674,1732221033643,-500.0,0.00043287,120]
[342956675,1732221033653,-200.0,0.00043494,120]
[342956676,1732221033662,-397.852,0.000435,120]
[342956677,1732221033673,-500.0,0.00043555,120]
[342956678,1732221033688,-150.0,0.00043588,30]
[342956679,1732221033698,-158.65,0.00043588,30]
[342956680,1732221033707,-310.1115346,0.00043653,15]
[342956681,1732221033717,-11807.86502975,0.000437,120]
[342956682,1732221033728,-2000.0,0.00043753,120]
[342956683,1732221033738,-470.54286897,0.000438,30]
[342956684,1732221033751,-1000.16,0.00043855,72]
[342956685,1732221033761,-500.0,0.00043945,120]
[342956686,1732221033771,-9829.26090013,0.0004398,120]
[342956687,1732221033780,-150.0,0.0004427,120]
[342956688,1732221033789,-340.26834982,0.00044555,2]
[342956689,1732221033798,-500.0,0.00044602,120]
[342956690,1732221033808,-500.0,0.00044655,120]
[342956691,1732221033820,-2000.0,0.00044655,120]
[342956692,1732221033830,-500.0,0.00044655,120]
[342956693,1732221033840,-200.0,0.00044655,120]
[342956694,1732221033850,-730.9277,0.00044732,60]
[342956695,1732221033859,-2000.0,0.00044848,31]
[342956696,1732221033869,-600.0,0.00045,2]
[342956697,1732221033879,-2283.37592948,0.00045,14]
[342956698,1732221033888,-1916.0,0.00045121,2]
[342956699,1732221033898,-1260.0,0.00045121,2]
[342956700,1732221033908,-815.0,0.00045121,2]
[342956701,1732221033917,-911.176,0.00045121,2]
[342956702,1732221033930,-564.0,0.00045121,2]
[342956703,1732221033940,-632.0,0.00045121,2]
[342956704,1732221033950,-1256.0,0.00045121,2]
[342956705,1732221033959,-150.0,0.00045121,2]
[342956706,1732221033968,-526.26,0.00045195,120]
[342956707,1732221033977,-354.63,0.00045225,120]
[342956708,1732221033987,-500.0,0.0004526,120]
[342956709,1732221033996,-1000.16,0.0004531,83]
[342956710,1732221034006,-1054.0,0.00045576,30]
[342956711,1732221034015,-153.0,0.0004558,31]
[342956712,1732221034024,-150.0,0.00045634,120]
[342956713,1732221034033,-2190.47029614,0.000457,120]
[342956714,1732221034043,-200.0,0.00045826,120]
[342956715,1732221034052,-500.0,0.00045917,120]
[342956716,1732221034061,-403.7,0.00045935,2]
[342956717,1732221034070,-353.402148,0.00046,120]
[342956718,1732221034079,-1000.0,0.00046,30]
[342956719,1732221034088,-3028.98983313,0.00046,30]
[342956720,1732221034097,-1317.94535872,0.00046,30]
[342956721,1732221034106,-2000.0,0.00046211,120]
[342956722,1732221034115,-851.79770462,0.00046542,120]
[342956723,1732221034124,-500.0,0.00046554,120]
[342956724,1732221034134,-500.0,0.00046575,120]
[342956725,1732221034144,-5916.88315616,0.0004662,120]
[342956726,1732221034153,-200.0,0.00046658,120]
[342956727,1732221034162,-1000.16,0.00046765,95]
[342956728,1732221034173,-650.0,0.00047,2]
[342956729,1732221034183,-3024.60674111,0.00047,60]
[342956730,1732221034192,-397.909,0.000471,120]
[342956731,1732221034201,-151.0,0.00047151,120]
[342956732,1732221034211,-151.0,0.00047188,7]
[342956733,1732221034220,-500.0,0.00047232,120]
[342956734,1732221034229,-1000.0,0.00047282,2]
[342956735,1732221034238,-151.29,0.00047354,2]
[342956736,1732221034248,-416419.126282,0.000476,30]
[342956737,1732221034257,-4227.0,0.00047617,117]
[342956738,1732221034266,-6775.0855,0.000477,2]
[342956739,1732221034275,-2500.0,0.000477,2]
[342956740,1732221034284,-500.0,0.000477,2]
[342956741,1732221034293,-614.97,0.00047705,120]
[342956742,1732221034302,-2000.0,0.00047768,120]
[342956743,1732221034312,-500.0,0.00047773,10]
[342956744,1732221034321,-526.26,0.00047779,120]
[342956745,1732221034330,-340.26834979,0.00047792,2]
[342956746,1732221034339,-3295.0,0.00047799,2]
[342956747,1732221034349,-285.83350481,0.00047799,11]
[342956748,1732221034358,-500.0,0.00047799,11]
[342956749,1732221034368,-582.68,0.00047799,11]
[342956750,1732221034377,-500.0,0.00047799,11]
[342956751,1732221034385,-500.0,0.00047799,11]
[342956752,1732221034394,-500.0,0.00047799,11]
[342956753,1732221034404,-500.0,0.00047799,11]
[342956754,1732221034413,-500.0,0.00047799,11]
[342956755,1732221034425,-500.0,0.00047799,11]
[342956756,1732221034434,-500.0,0.00047799,11]
[342956757,1732221034444,-500.0,0.00047799,11]
[342956758,1732221034453,-500.0,0.00047799,11]
[342956759,1732221034463,-500.0,0.00047799,11]
[342956760,1732221034471,-500.0,0.00047799,7]
[342956761,1732221034481,-155.1,0.00047799,11]
[342956762,1732221034490,-498.94191102,0.00047799,11]
[342956763,1732221034500,-138177.46525613,0.000478,30]
[342956764,1732221034508,-1583.0924,0.00047845,2]
[342956765,1732221034518,-500.0,0.0004789,120]
[342956766,1732221034528,-500.0,0.00047899,11]
[342956767,1732221034538,-958.6138,0.000479,2]
[342956768,1732221034548,-2000.0,0.000479,120]
[342956769,1732221034557,-500.0,0.000479,10]
[342956770,1732221034567,-79360.12327295,0.0004793,2]
[342956771,1732221034577,-1171.8,0.00047945,120]
[342956772,1732221034587,-500.0,0.00047945,120]
[342956773,1732221034596,-979.84,0.00047945,120]
[342956774,1732221034605,-1054.0,0.00047975,30]
[342956775,1732221034615,-31265.98174839,0.00048,30]
[342956776,1732221034624,-500.0,0.00048073,11]
[342956777,1732221034634,-500.0,0.00048073,11]
[342956778,1732221034643,-500.0,0.00048073,11]
[342956779,1732221034653,-500.0,0.00048073,7]
[342956780,1732221034663,-152.34,0.000481,45]
[342956781,1732221034674,-152.34,0.000481,45]
[342956782,1732221034689,-152.34,0.000481,45]
[342956783,1732221034698,-152.34,0.000481,45]
[342956784,1732221034707,-152.34,0.000481,45]
[342956785,1732221034717,-152.34,0.000481,45]
[342956786,1732221034726,-152.34,0.000481,45]
[342956787,1732221034738,-152.34,0.000481,45]
[342956788,1732221034753,-152.34,0.000481,45]
[342956789,1732221034762,-152.34,0.000481,45]
[342956790,1732221034772,-152.34,0.000481,45]
[342956791,1732221034782,-152.34,0.000481,45]
[342956792,1732221034794,-152.34,0.000481,45]
[342956793,1732221034803,-152.34,0.000481,45]
[342956794,1732221034813,-1260.0,0.00048121,2]
[342956795,1732221034823,-815.0,0.00048121,2]
[342956796,1732221034833,-632.0,0.00048121,2]
[342956797,1732221034843,-150.0,0.00048121,2]
[342956798,1732221034853,-1000.16,0.0004822,106]
[342956799,1732221034862,-500.0,0.0004828,120]
[342956800,1732221034872,-500.0,0.00048347,11]
[342956801,1732221034882,-500.0,0.00048347,11]
[342956802,1732221034893,-500.0,0.00048347,11]
[342956803,1732221034902,-500.0,0.00048452,120]
[342956804,1732221034912,-500.0,0.00048547,120]
[342956805,1732221034920,-500.0,0.00048621,11]
[342956806,1732221034932,-500.0,0.00048621,11]
[342956807,1732221034941,-500.0,0.00048621,11]
[342956808,1732221034951,-200.0,0.00048662,120]
[342956809,1732221034960,-150.0,0.00048674,120]
[342956810,1732221034969,-1125.76722253,0.00048803,30]
[342956811,1732221034979,-150.0,0.0004887,120]
[342956812,1732221034988,-314.52657721,0.00048895,11]
[342956813,1732221034997,-341.5,0.00048895,11]
[342956814,1732221035006,-500.0,0.00048895,11]
[342956815,1732221035015,-700.0,0.00049,2]
[342956816,1732221035027,-504.79504487,0.00049,60]
[342956817,1732221035037,-456640.0,0.00049,120]
[342956818,1732221035048,-2413.35,0.00049,5]
[342956819,1732221035058,-299.699609,0.00049099,4]
[342956820,1732221035067,-150.0,0.00049134,2]
[342956821,1732221035076,-447.8251,0.00049169,11]
[342956822,1732221035086,-2880.85043789,0.000492,5]
[342956823,1732221035095,-500.0,0.00049205,120]
[342956824,1732221035105,-200.0,0.00049315,60]
[342956825,1732221035114,-700.0,0.00049315,35]
[342956826,1732221035124,-4000.0,0.00049315,30]
[342956827,1732221035133,-175.45,0.00049315,30]
[342956828,1732221035142,-2000.0,0.00049325,120]
[342956829,1732221035152,-354.63,0.00049336,120]
[342956830,1732221035162,-633.82897246,0.000494,120]
[342956831,1732221035173,-1084.12470627,0.0004949,30]
[342956832,1732221035182,-1053.46400571,0.0004949,30]
[342956833,1732221035192,-1000.16,0.00049675,117]
[342956834,1732221035201,-421.93189668,0.00049746,120]
[342956835,1732221035210,-1000.0,0.0004978,2]
[342956836,1732221035219,-392.92767669,0.000498,30]
[342956837,1732221035228,-614.15547656,0.00049863,120]
[342956838,1732221035237,-5640.78032091,0.0004988,2]
[342956839,1732221035246,-260.39,0.0004999,120]
[342956840,1732221035255,-500.0,0.00049998,120]
[342956841,1732221035263,-500.0,0.00049998,120]
[342956842,1732221035272,-500.0,0.00049998,120]
[342956843,1732221035281,-500.0,0.00049998,120]
[342956844,1732221035291,-500.0,0.00049998,120]
[342956845,1732221035300,-500.0,0.00049998,120]
[342956846,1732221035309,-436.49346126,0.00049998,120]
[342956847,1732221035318,-512.91,0.00049998,120]
[342956848,1732221035327,-500.0,0.00049998,120]
[342956849,1732221035337,-503.68,0.00049998,120]
[342956850,1732221035346,-644.75,0.00049998,120]
[342956851,1732221035355,-500.0,0.00049998,120]
[342956852,1732221035364,-345.57019324,0.00049998,120]
[342956853,1732221035372,-500.0,0.00049998,120]
[342956854,1732221035382,-500.0,0.00049998,120]
[342956855,1732221035392,-500.0,0.00049998,120]
[342956856,1732221035401,-500.0,0.00049998,120]
[342956857,1732221035410,-500.0,0.00049998,120]
[342956858,1732221035420,-642.05,0.00049998,120]
[342956859,1732221035430,-511.08,0.00049998,120]
[342956860,1732221035439,-500.0,0.00049998,120]
[342956861,1732221035448,-500.0,0.00049998,120]
[342956862,1732221035457,-500.0,0.00049998,120]
[342956863,1732221035466,-500.0,0.00049998,60]
[342956864,1732221035475,-150.0,0.00049999,120]
[342956865,1732221035484,-500.0,0.0005,120]
[342956866,1732221035493,-500.0,0.0005,120]
[342956867,1732221035502,-500.0,0.0005,120]
[342956868,1732221035511,-500.0,0.0005,120]
[342956869,1732221035519,-584.797,0.0005,120]
[342956870,1732221035529,-2605.81378809,0.0005,5]
[342956871,1732221035538,-3015.70827341,0.0005,30]
[342956872,1732221035547,-150.0,0.0005,120]
[342956873,1732221035556,-2000.0,0.00050039,2]
[342956874,1732221035565,-2000.0,0.00050039,2]